Workbook

Sheet Single-Plate Connections
I1: American Institute of Steel Construction (AISC)
I2: Load and Resistance Factor Design (LRFD) - 13th Edition
I3: Single-Plate Connections
B5: O.S.:
A6: Cliente: | S6: Responsável:
A7: Obra: | S7: Data:
A8: Descrição: | S8: Revisão:
A10: Dados da Viga: | D10: W 410 x 38,8 | U10: Resistência do Parafuso Considerando Um Plano de Corte | AA10: m = | AB10: 0.5
A11: d = | B11: 399 | D11: Recortes: | AA11: Du = | AB11: 1.13
A12: bfs = | B12: 140 | D12: Sem Recorte | U12: db = | V12: =IF(db="5/8""",25.4*5/8,IF(db="3/4""",25.4*3/4,IF(db="7/8""",25.4*7/8,IF(db="1""",25.4*1,IF(db="1.1/8""",25.4*(1+1/8),25.4*(1+1/4)))))) -> 19.05 | X12: Ab = | Y12: =PI()*(dbSI/10)^2/4 -> 2.85022957 | AA12: hsc = | AB12: 1
A13: tfs = | B13: 8.8 | D13: c = | E13: 150 | U13: Fn = | V13: =IF(Tipo="ASTM A325N",48*70.306957964,60*70.306957964) -> 3374.733982 | AA13: Tb = | AB13: =IF(db="5/8""",91,IF(db="3/4""",142,IF(db="7/8""",176,IF(db="1""",205,IF(db="1.1/8""",267,326)))))*1000*'Conversão de Unidades'!C3 -> 14479.97018
A14: bfi = | B14: 140 | D14: dc = | E14: 35 | U14: f·Rn = 0,75·Fn·Ab = | X14: =0.75*Fn*Ab -> 7214.07494 | AA14: Ns = | AB14: 1
A15: tfi = | B15: 8.8 | D15: e = | E15: =IF(TipoRec="Sem Recorte","Não Aplic.",rec+folga) -> Não Aplic. | U15: Verificação da Configuração Convencional | AA15: f·Rn = | AC15: =1*AB10*AB11*AB12*AB13*AB14 -> 8181.183153
A16: tw = | B16: 6.4 | D16: =IF(TipoRec="Sem Recorte","",IF(AND(rec<=2*d,dc<=d/2),"Recorte Ok!","Não Permitido!")) -> 
A17: Fy = | C17: 3515.347898 | U17: Nº de Linhas de Parafusos: | Y17: =IF(nlp=1,"Ok!","Não Ok!") -> Ok!
A18: Fu = | C18: 4569.952268 | U18: Distância Solda / Parafuso: | Y18: =IF(a<=3.5*25.4,"Ok!","Não Ok!") -> Ok!
U19: Distância Horizontal Parafuso / Bordas:
A20: Parafusos / Geometria da Ligação | U20: Tipo 1 | W20: Viga: | Y20: =IF(OR(TipoLig="Tipo 1",TipoLig="Tipo 3"),IF(a-folga>=2*dbSI,"Ok!","Não Ok!"),IF(deh>=2*dbSI,"Ok!","Não Ok!")) -> Ok!
A21: Nº Linhas Parafusos (Verticais): | F21: 1 | W21: Chapa: | Y21: =IF(deh>=2*dbSI,"Ok!","Não Ok!") -> Ok!
A22: Nº Parafusos Linha: | F22: 4 | U22: Espessura da Alma da Viga: | Y22: =IF(tw<=dbSI/2+25.4/16,"Ok!","Não Ok!") -> Ok!
A23: div = | B23: =3*25.4 -> 76.2 | D23: a = | E23: =3*25.4 -> 76.2 | U23: Espessura da Chapa: | Y23: =IF(tp<=dbSI/2+25.4/16,"Ok!","Não Ok!") -> Ok!
A24: dih = | B24: =div -> 76.2 | D24: dfs = | E24: =div -> 76.2 | U24: =IF(AND(Nd=0,Y17="Ok!",Y18="Ok!",Y20="Ok!",Y21="Ok!",Y22="Ok!",Y23="Ok!"),"Configuração Convencional","Configuração Extendida") -> Configuração Extendida
A25: dev = | B25: =1.25*25.4 -> 31.75 | D25: f = | E25: =0.5*25.4 -> 12.7 | U25: Resistência do Grupo de Parafusos
A26: deh = | B26: =2*dbSI -> 38.1 | D26: ep = | E26: =a+(nlp-1)*dih/2 -> 76.2 | U26: f·Rn Total = | W26: =IF(Config="Configuração Convencional",IF(npl>=10,W31*1.25,npl*Rb),"Não Aplicável") -> Não Aplicável | Z26: =IF(Config="Configuração Convencional",Vd/W26,"N.A.") -> N.A. | AA26: =W26/453.59237 -> 
A27: Parafusos: | C27: ASTM A325N | F27: 3/4" | U27: Resistência do Grupo de Parafusos pelo Método do Centro Instatâneo de Rotação Considerando Esmagamento
A28: Furo Padrão + 2mm = | E28: =IF(db="5/8""",(5/8+1/16+1/16)*25.4,IF(db="3/4""",(3/4+1/16+1/16)*25.4,IF(db="7/8""",(7/8+1/16+1/16)*25.4,IF(db="1""",(1+1/16+1/16)*25.4,IF(db="1.1/8""",(1+1/8+1/16+1/16)*25.4,(1+1/4+1/16+1/16)*25.4))))) -> 22.225
A29: =IF((npl-1)*div+2*dfs<=d,"Geometria Ok!","Geometria Inadequada Para O Perfil") -> Geometria Ok!
U30: C = | V30: =IF(Nd=0,coefC,MIN(AB33,AB34)) -> 2.8324093 | X30: C' = | Y30: =Clinha*2.54 -> 28.59103232
A31: Dados da Chapa (Single-Plate) | U31: f·Rn Total = | W31: =MIN(Rb,F55/(nlp*npl),L55/(nlp*npl))*V30 -> 20433.21295 | Z31: =SQRT(Vd^2+Nd^2)/W31 -> 1.190636192 | AA31: =W31/453.59237 -> 45.04752352
A32: tp = | B32: 6.35 | D32: dp = | E32: =(npl-1)*div+2*dev -> 292.1 | U32: Mmax = 1,25·Fv·Ab·C' = | X32: =1.25*Fn*Ab*Y30 -> 343763.0829 | AA32: q = | AB32: =ATAN(Nd/Vd)*180/PI() -> -14.99589159
A33: Fyp = | C33: =36*70.306957964 -> 2531.050487 | H33: Esforços de Cálculo | U33: Viga: | V33: tmax = | W33: =10*6*Mmax/(Fy*IF(TipoRec="Sem Recorte",d/10,IF(TipoRec="Flange Superior",(d-dc)/10,(d-2*dc)/10))^2) -> 3.685499723 | Y33: =IF(nlp=1,IF(AND(Y20="Ok!",Y21="Ok!"),IF(OR(Y22="Ok!",Y23="Ok!"),"Ok!",IF(tw<=tmaxv,"Ok!","Não Ok!")),IF(tw<=tmaxv,"Ok!","Não Ok!")),IF(nlp=2,IF(AND(Y20="Ok!",Y21="Ok!",Y22="Ok!",Y23="Ok!"),"Ok!",IF(tw<=tmaxv,"Ok!","Não Ok!")),IF(tw<=tmaxv,"Ok!","Não Ok!"))) -> Ok! | AA33: C = | AB33: =BoltCoefficient1(npl,nlp,div/25.4,dih/25.4,ep/25.4,ATAN(Nd/Vd)*180/PI()) -> 2.861857482 | AD33: Crawford and Kulak
A34: Fup = | C34: =58*70.306957964 -> 4077.803562 | H34: Vd = | I34: 23500 | K34: Nd = | L34: -6295 | N34: Mdv = | O34: =IF(TipoRec="Sem Recorte","Não Aplic.",Vd*e/1000) -> Não Aplic. | Q34: Mdp = | R34: =Vd*ep/1000 -> 1790.7 | U34: Chapa: | V34: tmax = | W34: =10*6*Mmax/(Fyp*(dp/10)^2) -> 9.550949832 | Y34: =IF(nlp=1,IF(AND(Y20="Ok!",Y21="Ok!"),IF(OR(Y22="Ok!",Y23="Ok!"),"Ok!",IF(tp<=tmaxp,"Ok!","Não Ok!")),IF(tp<=tmaxp,"Ok!","Não Ok!")),IF(nlp=2,IF(AND(Y20="Ok!",Y21="Ok!",Y22="Ok!",Y23="Ok!"),"Ok!",IF(tp<=tmaxp,"Ok!","Não Ok!")),IF(tp<=tmaxp,"Ok!","Não Ok!"))) -> Ok! | AA34: C = | AB34: =BoltCoefficient2(npl,nlp,div/25.4,dih/25.4,ep/25.4,ATAN(Nd/Vd)*180/PI()) -> 2.8324093 | AD34: Donald Brandt
A36: Verificações | C36: Viga | H36: Chapa | M36: Verificações Adicionais da Chapa e da Viga Submetidas a Esforço Axial | T36: Verificação do Momento Fletor Localizado
A37: Escoamento Seção Bruta | C37: Vd / fv·Vn = | E37: =ROUND(ABS(Vd/G48),2) -> 0.44 | F37: =IF(E37<=1,"Ok!","Não Ok!") -> Ok! | H37: Vd / fv·Vn = | J37: =ROUND(ABS(Vd/M48),2) -> 0.83 | K37: =IF(J37<=1,"Ok!","Não Ok!") -> Ok! | T37: Viga: | V37: Md / fb·Mn = | X37: =IF(TipoRec="Sem Recorte","N.A.",ROUND(ABS(Mdv/MIN(R71,R74,R81)),2)) -> N.A. | Y37: =IF(TipoRec="Sem Recorte","N.A.",IF(X37<=1,"Ok!","Não Ok!")) -> N.A.
C38: Nd / f·Nn = | E38: =IF(Nd=0,"N.A.",ROUND(ABS(Nd/S48),2)) -> 0.08 | F38: =IF(Nd=0,"N.A.",IF(E38<=1,"Ok!","Não Ok!")) -> Ok! | H38: Nd / f·Nn = | J38: =IF(Nd=0,"N.A.",ROUND(ABS(Nd/Y48),2)) -> 0.15 | K38: =IF(Nd=0,"N.A.",IF(J38<=1,"Ok!","Não Ok!")) -> Ok! | M38: Colapso Rasgamento Externo Linhas Furos | T38: Chapa: | V38: Md / fb·Mn = | X38: =ROUND(ABS(Mdp/MIN(E85,E88,P88)),2) -> 0.87 | Y38: =IF(X38<=1,"Ok!","Não Ok!") -> Ok!
A39: Ruptura Seção Líquida | C39: Vd / fv·Vn = | E39: =ROUND(ABS(Vd/G50),2) -> 0.58 | F39: =IF(E39<=1,"Ok!","Não Ok!") -> Ok! | H39: Vd / fv·Vn = | J39: =ROUND(ABS(Vd/M50),2) -> 0.99 | K39: =IF(J39<=1,"Ok!","Não Ok!") -> Ok! | M39: Viga: | O39: Nd / f·Nn = | Q39: =IF(Nd>=0,"N.A.",IF(TipoRec<>"Ambos Flanges","N.A.",IF(OR(TipoLig<>"Tipo 3",a-folga+(nlp-1)*dih>1.5*rec),"N.A.",ROUND(ABS(Nd/S67),2)))) -> N.A. | R39: =IF(Nd>=0,"N.A.",IF(TipoRec<>"Ambos Flanges","N.A.",IF(OR(TipoLig<>"Tipo 3",a-folga+(nlp-1)*dih>1.5*rec),"N.A.",IF(Q39<=1,"Ok!","Não Ok!")))) -> N.A. | T39: Verificação das Tensões Combinadas
C40: Nd / f·Nn = | E40: =IF(Nd>=0,"N.A.",ROUND(ABS(Nd/S50),2)) -> 0.09 | F40: =IF(Nd>=0,"N.A.",IF(E40<=1,"Ok!","Não Ok!")) -> Ok! | H40: Nd / f·Nn = | J40: =IF(Nd>=0,"N.A.",ROUND(ABS(Nd/Y50),2)) -> 0.16 | K40: =IF(Nd>=0,"N.A.",IF(J40<=1,"Ok!","Não Ok!")) -> Ok! | M40: Chapa: | O40: Nd / f·Nn = | Q40: =IF(Nd>=0,"N.A.",ROUND(ABS(Nd/Y67),2)) -> 0.47 | R40: =IF(Nd>=0,"N.A.",IF(Q40<=1,"Ok!","Não Ok!")) -> Ok! | T40: Chapa: | V40: Equação = | X40: =X88 -> 1.208297056 | Y40: =IF(Config="Configuração Convencional","N.A.",IF(X40<=1,"Ok!","Não Ok!")) -> Não Ok!
A41: Pressão de Contato | C41: Vd / fv·Vn = | E41: =ROUND(ABS(Vd/F55),2) -> 0.59 | F41: =IF(E41<=1,"Ok!","Não Ok!") -> Ok! | H41: Vd / fv·Vn = | J41: =ROUND(ABS(Vd/L55),2) -> 0.66 | K41: =IF(J41<=1,"Ok!","Não Ok!") -> Ok! | M41: Escoamento da Seção de Whitmore | T41: Solda Filete Eletrodo AWS E70XX
C42: Nd / f·Nn = | E42: =IF(Nd=0,"N.A.",ROUND(ABS(Nd/R55),2)) -> 0.16 | F42: =IF(Nd=0,"N.A.",IF(E42<=1,"Ok!","Não Ok!")) -> Ok! | H42: Nd / f·Nn = | J42: =IF(Nd=0,"N.A.",ROUND(ABS(Nd/X55),2)) -> 0.24 | K42: =IF(Nd=0,"N.A.",IF(J42<=1,"Ok!","Não Ok!")) -> Ok! | M42: Chapa: | O42: Nd / f·Nn = | Q42: =IF(Nd=0,"N.A.",IF(nlp=1,"N.A.",ROUND(ABS(Nd/Y73),2))) -> N.A. | R42: =IF(Nd=0,"N.A.",IF(nlp=1,"N.A.",IF(Q42<=1,"Ok!","Não Ok!"))) -> N.A. | T42: Resultante de Forças (Pd) = | X42: =SQRT(Vd^2+Nd^2) -> 24328.52287
A43: Colapso por Rasgamento | C43: Vd / fv·Vn = | E43: =IF(TipoRec="Sem Recorte","N.A.",ROUND(ABS(Vd/G61),2)) -> N.A. | F43: =IF(TipoRec="Sem Recorte","N.A.",IF(E43<=1,"Ok!","Não Ok!")) -> N.A. | H43: Vd / fv·Vn = | J43: =ROUND(ABS(Vd/M61),2) -> 0.98 | K43: =IF(J43<=1,"Ok!","Não Ok!") -> Ok! | M43: Flambagem a Compressão | T43: Ângulo Pd / Vd (d) = | X43: =ABS(ATAN(Nd/Vd)*180/PI()) -> 14.99589159
C44: Nd / f·Nn = | E44: =IF(Nd>=0,"N.A.",ROUND(ABS(Nd/S61),2)) -> 0.13 | F44: =IF(Nd>=0,"N.A.",IF(E44<=1,"Ok!","Não Ok!")) -> Ok! | H44: Nd / f·Nn = | J44: =IF(Nd>=0,"N.A.",ROUND(ABS(Nd/Y61),2)) -> 0.17 | K44: =IF(Nd>=0,"N.A.",IF(J44<=1,"Ok!","Não Ok!")) -> Ok! | M44: Chapa: | O44: Nd / f·Nn = | Q44: =IF(Nd<=0,"N.A.",ROUND(ABS(Nd/X81),2)) -> N.A. | R44: =IF(Nd<=0,"N.A.",IF(Q44<=1,"Ok!","Não Ok!")) -> N.A. | T44: Pd / 2·0,75·Fw·Aw·(1,0+0,5·sen1,5q) = | Y44: =ROUNDUP(MAX(Pd/(2*0.75*(0.6*70*'Conversão de Unidades'!E18)*(0.707*(dp/10))*(1+0.5*SIN(PI()*delta/180)^1.5)),(5/8)*tp/10)*10,0) -> 4
A46: Verificações | C46: Esforço Cortante | O46: Esforço Axial
C47: Viga | I47: Chapa | O47: Viga | U47: Chapa
A48: Escoamento Seção Bruta | C48: f·Rn = fv·0,60·Fy·Ag = | G48: =IF(Perfil="Perfil Soldado",0.9,1)*0.6*Fy*Ag -> 53860.75436 | I48: f·Rn = 1,00,·0,60·Fy·Ag = | M48: =0.6*Fyp*Agp -> 28168.08618 | O48: f·Rn = 0,90·Fy·Ag = | S48: =IF(Nd=0,"N.A.",0.9*Fy*Aga) -> 80791.13154 | U48: f·Rn = 0,90·Fy·Ag = | Y48: =IF(Nd=0,"N.A.",0.9*Fyp*Agpa) -> 42252.12927 | AA48: =M48/453.59237 -> 62.1
C49: Ag = | D49: =IF(TipoRec="Sem Recorte",d*tw/100,IF(TipoRec="Flange Superior",(d-dc)*tw/100,(d-2*dc)*tw/100)) -> 25.536 | I49: Ag = | J49: =((npl-1)*(div/10)+2*(dev/10))*(tp/10) -> 18.54835 | O49: Ag = | P49: =IF(Nd=0,"N.A.",IF(TipoRec="Sem Recorte",IF(nlp=1,d*tw/100,IF(AND(Perfil<>"Perfil Soldado",Perfil<>"Perfil Laminado"),D107,((d-tfs-tfi)*tw+bfs*tfs+bfi*tfi)/100)),IF(TipoRec="Flange Superior",IF(nlp=1,(d-dc)*tw/100,IF(AND(Perfil<>"Perfil Soldado",Perfil<>"Perfil Laminado"),D107,((d-dc-tfi)*tw+bfi*tfi)/100)),(d-2*dc)*tw/100))) -> 25.536 | U49: Ag = | V49: =IF(Nd=0,"N.A.",dp*tp/100) -> 18.54835
A50: Ruptura Seção Líquida | C50: f·Rn = 0,75·0,60·Fu·Ae = | G50: =0.75*0.6*Fu*Ae -> 40813.69531 | I50: f·Rn = 0,75·0,60·Fu·Ae = | M50: =0.75*0.6*Fup*Aep -> 23677.52171 | O50: f·Rn = 0,75·Fu·Ae = | S50: =IF(Nd>=0,"N.A.",0.75*Fu*Aea) -> 68022.82551 | U50: f·Rn = 0,75·Fu·Ae = | Y50: =IF(Nd>=0,"N.A.",0.75*Fup*Aepa) -> 39462.53619 | AA50: =M50/453.59237 -> 52.2
C51: U = | D51: 1 | E51: Ae = U·An = | G51: =U*(Ag-npl*df*tw/100) -> 19.8464 | I51: U = | J51: 1 | K51: Ae = U·An = | M51: =Up*(Agp-npl*(df/10)*(tp/10)) -> 12.9032 | O51: U = | P51: =IF(Nd>=0,"N.A.",IF(nlp=1,1,IF(1-R108/((nlp-1)*dih)>=0.6,MIN(1-R108/((nlp-1)*dih),0.9),"U<0,6"))) -> 1 | Q51: Ae = U·An = | S51: =IF(Nd>=0,"N.A.",Ua*(Aga-npl*df*tw/100)) -> 19.8464 | U51: U = | V51: 1 | W51: Ae = U·An = | Y51: =IF(Nd>=0,"N.A.",Upa*(Agpa-npl*(df/10)*(tp/10))) -> 12.9032
A52: Pressão de Contato nos Furos ("Bearing Strength") | C52: Lci = | D52: =IF(TipoRec="Sem Recorte","N.A.",div-(df-2)) -> N.A. | F52: Lce = | G52: =IF(TipoRec="Sem Recorte","N.A.",(dfs-dc)-(df-2)/2) -> N.A. | I52: Lci = | J52: =div-(df-2) -> 55.975 | L52: Lce = | M52: =dev-(df-2)/2 -> 21.6375 | O52: Lci = | P52: =IF(Nd=0,"N.A.",IF(nlp=1,0,dih-(df-2))) -> 0 | R52: Lce = | S52: =IF(Nd=0,"N.A.",IF(OR(TipoLig="Tipo 1",TipoLig="Tipo 3"),(a-folga)-(df-2)/2,deh-(df-2)/2)) -> 53.3875 | U52: Lci = | V52: =IF(Nd=0,"N.A.",IF(nlp=1,0,dih-(df-2))) -> 0 | X52: Lce = | Y52: =IF(Nd=0,"N.A.",deh-(df-2)/2) -> 27.9875
C53: Rn = 1,2·Lc·t·Fu = | F53: =IF(TipoRec="Sem Recorte","N.A.",nlp*1.2*((npl-1)*Lci/10+Lce/10)*(tw/10)*Fu) -> N.A. | I53: Rn = 1,2·Lc·t·Fu = | L53: =nlp*1.2*((npl-1)*Lcip/10+Lcep/10)*(tp/10)*Fup -> 58902.49619 | O53: Rn = 1,2·Lc·t·Fu = | R53: =IF(Nd=0,"N.A.",npl*1.2*((nlp-1)*Lcia/10+Lcea/10)*(tw/10)*Fu) -> 74950.14196 | U53: Rn = 1,2·Lc·t·Fu = | X53: =IF(Nd=0,"N.A.",npl*1.2*((nlp-1)*Lcipa/10+Lcepa/10)*(tp/10)*Fup) -> 34786.07029
C54: Rn = 2,4·d·t·Fu = | F54: =2.4*(dbSI/10)*(tw/10)*Fu*npl*nlp -> 53488.18373 | I54: Rn = 2,4·d·t·Fu = | L54: =2.4*(dbSI/10)*(tp/10)*Fup*npl*nlp -> 47355.04343 | O54: Rn = 2,4·d·t·Fu = | R54: =IF(Nd=0,"N.A.",2.4*(dbSI/10)*(tw/10)*Fu*npl*nlp) -> 53488.18373 | U54: Rn = 2,4·d·t·Fu = | X54: =IF(Nd=0,"N.A.",2.4*(dbSI/10)*(tp/10)*Fup*npl*nlp) -> 47355.04343
C55: f·Rn = 0,75·Rn = | F55: =IF(TipoRec="Sem Recorte",0.75*F54,0.75*MIN(F53:H54)) -> 40116.13779 | I55: f·Rn = 0,75·Rn = | L55: =0.75*MIN(L53:N54) -> 35516.28257 | O55: f·Rn = 0,75·Rn = | R55: =IF(Nd=0,"N.A.",0.75*MIN(R53:T54)) -> 40116.13779 | U55: f·Rn = 0,75·Rn = | X55: =IF(Nd=0,"N.A.",0.75*MIN(X53:Z54)) -> 26089.55272 | AA55: =L55/453.59237 -> 78.3
A56: Colapso por Rasgamento (Block Shear) | C56: Agt = | D56: =IF(TipoRec="Sem Recorte","N.A.",IF(OR(TipoLig="Tipo 1",TipoLig="Tipo 3"),(((a-folga)+(nlp-1)*dih)/10)*(tw/10),((deh+(nlp-1)*dih)/10)*(tw/10))) -> N.A. | F56: Ant = | G56: =IF(TipoRec="Sem Recorte","N.A.",Agt-(nlp-0.5)*(df/10)*(tw/10)) -> N.A. | I56: Agt = | J56: =((deh+(nlp-1)*dih)/10)*(tp/10) -> 2.41935 | L56: Ant = | M56: =Agtp-(nlp-0.5)*(df/10)*(tp/10) -> 1.71370625 | O56: Agt = | P56: =IF(Nd>=0,"N.A.",(npl-1)*(div/10)*(tw/10)) -> 14.6304 | R56: Ant = | S56: =IF(Nd>=0,"N.A.",Agta-(npl-1)*(df/10)*(tw/10)) -> 10.3632 | U56: Agt = | V56: =IF(Nd>=0,"N.A.",(npl-1)*(div/10)*(tp/10)) -> 14.5161 | X56: Ant = | Y56: =IF(Nd>=0,"N.A.",Agtpa-(npl-1)*(df/10)*(tp/10)) -> 10.2822375
C57: Agv = | D57: =IF(TipoRec="Sem Recorte","N.A.",((npl-1)*(div/10)+((dfs-dc)/10))*(tw/10)) -> N.A. | F57: Anv = | G57: =IF(TipoRec="Sem Recorte","N.A.",Agv-(npl-0.5)*(df/10)*(tw/10)) -> N.A. | I57: Agv = | J57: =((npl-1)*(div/10)+(dev/10))*(tp/10) -> 16.532225 | L57: Anv = | M57: =Agvp-(npl-0.5)*(df/10)*(tp/10) -> 11.59271875 | O57: Agv = | P57: =IF(Nd>=0,"N.A.",IF(OR(TipoLig="Tipo 1",TipoLig="Tipo 3"),(((a-folga)+(nlp-1)*dih)/10)*(tw/10),((deh+(nlp-1)*dih)/10)*(tw/10))*2) -> 8.128 | R57: Anv = | S57: =IF(Nd>=0,"N.A.",Agva-(nlp-0.5)*(df/10)*(tw/10)*2) -> 6.7056 | U57: Agv = | V57: =IF(Nd>=0,"N.A.",((deh+(nlp-1)*dih)/10)*(tp/10)*2) -> 4.8387 | X57: Anv = | Y57: =IF(Nd>=0,"N.A.",Agvpa-(nlp-0.5)*(df/10)*(tp/10)*2) -> 3.4274125
C58: Ubs = | D58: =IF(TipoRec="Sem Recorte","N.A.",IF(nlp=1,1,0.5)) -> N.A. | E58: (Ver Comentários no AISC 13th) | I58: Ubs = | J58: =IF(nlp=1,1,0.5) -> 1 | K58: (Ver Comentários no AISC 13th) | O58: Ubs = | P58: 1 | Q58: (Ver Comentários no AISC 13th) | U58: Ubs = | V58: 1 | W58: (Ver Comentários no AISC 13th)
C59: 0,60·Fu·Anv+Ubs·Fu·Ant = | G59: =IF(TipoRec="Sem Recorte","N.A.",0.6*Fu*Anv+Ubs*Fu*Ant) -> N.A. | I59: 0,60·Fu·Anv+Ubs·Fu·Ant = | M59: =0.6*Fup*Anvp+Ubsp*Fup*Antp -> 35351.85534 | O59: 0,60·Fu·Anv+Ubs·Fu·Ant = | S59: =IF(Nd>=0,"N.A.",0.6*Fu*Anva+Ubsa*Fu*Anta) -> 65745.8925 | U59: 0,60·Fu·Anv+Ubs·Fu·Ant = | Y59: =IF(Nd>=0,"N.A.",0.6*Fup*Anvpa+Ubspa*Fup*Antpa) -> 50314.73364
C60: 0,60·Fy·Agv+Ubs·Fu·Ant = | G60: =IF(TipoRec="Sem Recorte","N.A.",0.6*Fy*Agv+Ubs*Fu*Ant) -> N.A. | I60: 0,60·Fy·Agv+Ubs·Fu·Ant = | M60: =0.6*Fyp*Agvp+Ubsp*Fup*Antp -> 32094.49513 | O60: 0,60·Fy·Agv+Ubs·Fu·Ant = | S60: =IF(Nd>=0,"N.A.",0.6*Fy*Agva+Ubsa*Fu*Anta) -> 64502.97797 | U60: 0,60·Fy·Agv+Ubs·Fu·Ant = | Y60: =IF(Nd>=0,"N.A.",0.6*Fyp*Agvpa+Ubspa*Fup*Antpa) -> 49277.1411
C61: f·Rn = 0,75·Rn = | G61: =IF(TipoRec="Sem Recorte","N.A.",0.75*MIN(G59:H60)) -> N.A. | I61: f·Rn = 0,75·Rn = | M61: =0.75*MIN(M59:N60) -> 24070.87135 | O61: f·Rn = 0,75·Rn = | S61: =IF(Nd>=0,"N.A.",0.75*MIN(S59:T60)) -> 48377.23348 | U61: f·Rn = 0,75·Rn = | Y61: =IF(Nd>=0,"N.A.",0.75*MIN(Y59:Z60)) -> 36957.85582 | AA61: =M61/453.59237 -> 53.0671875
A62: Colapso por Rasgamento (Block Shear) Externo às Linhas de Furos | C62: Não Aplicável | I62: Não Aplicável | O62: Agt = | P62: =IF(Nd>=0,"N.A.",IF(TipoRec<>"Ambos Flanges","N.A.",IF(OR(TipoLig<>"Tipo 3",a-folga+(nlp-1)*dih>1.5*rec),"N.A.",2*((dfs-dc)/10)*(tw/10)))) -> N.A. | R62: Ant = | S62: =IF(Nd>=0,"N.A.",IF(TipoRec<>"Ambos Flanges","N.A.",IF(OR(TipoLig<>"Tipo 3",a-folga+(nlp-1)*dih>1.5*rec),"N.A.",Agtae-(df/10)*(tw/10)))) -> N.A. | U62: Agt = | V62: =IF(Nd>=0,"N.A.",2*(dev/10)*(tp/10)) -> 4.03225 | X62: Ant = | Y62: =IF(Nd>=0,"N.A.",Agtpae-(df/10)*(tp/10)) -> 2.6209625
O63: Agv = | P63: =IF(Nd>=0,"N.A.",IF(TipoRec<>"Ambos Flanges","N.A.",IF(OR(TipoLig<>"Tipo 3",a-folga+(nlp-1)*dih>1.5*rec),"N.A.",IF(OR(TipoLig="Tipo 1",TipoLig="Tipo 3"),(((a-folga)+(nlp-1)*dih)/10)*(tw/10),((deh+(nlp-1)*dih)/10)*(tw/10))*2))) -> N.A. | R63: Anv = | S63: =IF(Nd>=0,"N.A.",IF(TipoRec<>"Ambos Flanges","N.A.",IF(OR(TipoLig<>"Tipo 3",a-folga+(nlp-1)*dih>1.5*rec),"N.A.",Agvae-(nlp-0.5)*(df/10)*(tw/10)*2))) -> N.A. | U63: Agv = | V63: =IF(Nd>=0,"N.A.",((deh+(nlp-1)*dih)/10)*(tp/10)*2) -> 4.8387 | X63: Anv = | Y63: =IF(Nd>=0,"N.A.",Agvpae-(nlp-0.5)*(df/10)*(tp/10)*2) -> 3.4274125
O64: Ubs = | P64: 1 | Q64: (Ver Comentários no AISC 13th) | U64: Ubs = | V64: 1 | W64: (Ver Comentários no AISC 13th)
O65: 0,60·Fu·Anv+Ubs·Fu·Ant = | S65: =IF(Nd>=0,"N.A.",IF(TipoRec<>"Ambos Flanges","N.A.",IF(OR(TipoLig<>"Tipo 3",a-folga+(nlp-1)*dih>1.5*rec),"N.A.",0.6*Fu*Anvae+Ubsae*Fu*Antae))) -> N.A. | U65: 0,60·Fu·Anv+Ubs·Fu·Ant = | Y65: =IF(Nd>=0,"N.A.",0.6*Fup*Anvpae+Ubspae*Fup*Antpae) -> 19073.55916
O66: 0,60·Fy·Agv+Ubs·Fu·Ant = | S66: =IF(Nd>=0,"N.A.",IF(TipoRec<>"Ambos Flanges","N.A.",IF(OR(TipoLig<>"Tipo 3",a-folga+(nlp-1)*dih>1.5*rec),"N.A.",0.6*Fy*Agvae+Ubsae*Fu*Antae))) -> N.A. | U66: 0,60·Fy·Agv+Ubs·Fu·Ant = | Y66: =IF(Nd>=0,"N.A.",0.6*Fyp*Agvpae+Ubspae*Fup*Antpae) -> 18035.96661
O67: f·Rn = 0,75·Rn = | S67: =IF(Nd>=0,"N.A.",IF(TipoRec<>"Ambos Flanges","N.A.",IF(OR(TipoLig<>"Tipo 3",a-folga+(nlp-1)*dih>1.5*rec),"N.A.",0.75*MIN(S65:T66)))) -> N.A. | U67: f·Rn = 0,75·Rn = | Y67: =IF(Nd>=0,"N.A.",0.75*MIN(Y65:Z66)) -> 13526.97496
A68: Verificação da Seção Líquida da Viga Considerando Recorte nos Flanges - Ruptura por Escoamento a Flexão | U68: Verificações Adicionais da Chapa Submetida a Esforço Axial
A69: Awn = | C69: =IF(TipoRec="Sem Recorte","Não Aplicável",IF(TipoRec="Flange Superior",(d-dc-tfi)*tw,(d-2*dc)*tw)) -> Não Aplicável | F69: YCGw = | H69: =IF(TipoRec="Sem Recorte","Não Aplicável",IF(TipoRec="Flange Superior",(d-dc-tfi)/2+tfi,(d-2*dc)/2)) -> Não Aplicável | K69: dw = | L69: =IF(TipoRec="Sem Recorte","Não Aplicável",IF(YCGw>=YCGn,YCGw-YCGn,YCGn-YCGw)) -> Não Aplicável | O69: Ixn (cm4) = | Q69: =IF(TipoRec="Sem Recorte","Não Aplicável",IF(TipoRec="Flange Superior",(tw*(d-dc-tfi)^3/12+Awn*dw^2+bfi*tfi^3/12+Afi*dfi^2)/10000,(tw*(d-2*dc)^3/12/10000))) -> Não Aplicável
A70: Afi = | C70: =IF(TipoRec="Sem Recorte","Não Aplicável",IF(TipoRec="Flange Superior",bfi*tfi,"Não Aplicável")) -> Não Aplicável | F70: YCGfi = | H70: =IF(TipoRec="Sem Recorte","Não Aplicável",IF(TipoRec="Flange Superior",tfi/2,"Não Aplicável")) -> Não Aplicável | K70: dfi = | L70: =IF(TipoRec="Sem Recorte","Não Aplicável",IF(TipoRec="Flange Superior",YCGn-YCGfi,"Não Aplicável")) -> Não Aplicável | O70: wxn = | Q70: =IF(TipoRec="Sem Recorte","Não Aplicável",IF(TipoRec="Flange Superior",MIN(Ixn/((d-dc-YCGn)/10),Ixn/(YCGn/10)),Ixn/(YCGn/10))) -> Não Aplicável | U70: Escoamento da Seção de Whitmore
F71: YCGn = | H71: =IF(TipoRec="Sem Recorte","Não Aplicável",IF(TipoRec="Flange Superior",(Awn*YCGw+Afi*YCGfi)/(Awn+Afi),YCGw)) -> Não Aplicável | N71: fb·Mn = 0,75·Fu·wxn = | R71: =IF(TipoRec="Sem Recorte","Não Aplicável",0.75*Fu*wxn/100) -> Não Aplicável | U71: dwt = | V71: =IF(Nd=0,"N.A.",IF(nlp=1,"N.A.",2*(nlp-1)*dih*TAN(PI()*30/180)+(npl-1)*div)) -> N.A. | X71: dpf = | Y71: =IF(Nd=0,"N.A.",IF(nlp=1,"N.A.",MIN(dwt,dp))) -> N.A.
A72: Verificação da Seção Líquida da Viga Considerando Recorte no Flange Superior - Flambagem Local da Alma | U72: Ag = | V72: =IF(Nd=0,"N.A.",IF(nlp=1,"N.A.",dpf*tp/100)) -> N.A.
A73: ho = | B73: =d-dc -> 364 | P73: Fcr = | Q73: =IF(TipoRec="Sem Recorte","Não Aplicável",(PI()^2*2.05*10^6/(12*(1-0.3^2)))*(tw/ho)^2*f*k) -> Não Aplicável | U73: f·Rn = 0,90·Fy·Ag = | Y73: =IF(Nd=0,"N.A.",IF(nlp=1,"N.A.",0.9*Fyp*Agpaf)) -> N.A.
A74: f = | B74: =IF(rec/d<=1,2*rec/d,1+rec/d) -> 0.7518796992 | C74: k = | D74: =IF(rec/ho<=1,2.2*(ho/rec)^1.65,2.2*ho/rec) -> 9.499251506 | N74: fb·Mn = 0,90·Fcr·wxn = | R74: =IF(TipoRec="Sem Recorte","Não Aplicável",IF(TipoRec="Flange Superior",0.9*MIN(Fcr,Fy)*wxn/100,"Não Aplicável")) -> Não Aplicável | U74: Flambagem a Compressão
A75: Verificação da Seção Líquida da Viga Considerando Recorte em Ambos os Flanges - Flambagem Lateral por Torção da Alma | U75: A = | V75: =IF(Nd<=0,"N.A.",IF(nlp=1,Agpa,Agpaf)) -> N.A. | X75: I = | Y75: =IF(Nd<=0,"N.A.",IF(nlp=1,(dp/10)*(tp/10)^3/12,(dpf/10)*(tp/10)^3/12)) -> N.A.
A76: Para dc ≤ 0,2·d: | J76: Para dc > 0,2·d: | U76: r = | V76: =IF(Nd<=0,"N.A.",SQRT(Y75/V75)) -> N.A. | X76: L = | Y76: =IF(Nd<=0,"N.A.",a/10) -> N.A.
V77: K·L/r = 1,20·L/r = | Y77: =IF(Nd<=0,"N.A.",1.2*Y76/V76) -> N.A.
Y78: =IF(Nd<=0,"N.A.",4.71*SQRT(2040000/Fyp)) -> N.A.
A79: fd = 3,5-7,5·(dc/d) = | D79: =3.5-7.5*(dc/d) -> 2.842105263 | V79: Fe = | W79: =IF(Nd<=0,"N.A.",PI()^2*2040000/Y77^2) -> N.A.
A80: Fcr = | B80: =IF(TipoRec="Sem Recorte","Não Aplicável",0.62*PI()*2.05*10^6*(tw^2/(rec*ho))*fd) -> Não Aplicável | J80: l = | K80: =ho*SQRT(Fy*'Conversão de Unidades'!$E$17)/(10*tw*SQRT(475+280*(ho/rec)^2)) -> 0.8726610656 | S80: Q = | T80: =IF(lambda<=0.7,1,IF(lambda<=1.41,1.34-0.486*lambda,1.3/lambda^2)) -> 0.9158867221 | V80: Fcr = | W80: =IF(Nd<=0,"N.A.",IF(Y77<=25,Fyp,IF(Y77<=Y78,(0.658^(Fyp/W79))*Fyp,0.877*Fep))) -> N.A.
A81: fb·Mn = 0,90·Fcr·wxn = | E81: =IF(TipoRec="Sem Recorte","Não Aplicável",IF(TipoRec="Flange Superior","Não Aplicável",IF(dc>0.2*d,"Não Aplicável",0.9*MIN(B80,Fy)*wxn/100))) -> Não Aplicável | J81: Fcr = Fy·Q = | L81: =IF(TipoRec="Sem Recorte","Não Aplicável",Fy*Q) -> Não Aplicável | N81: fb·Mn = 0,90·Fcr·wxn = | R81: =IF(TipoRec="Sem Recorte","Não Aplicável",IF(TipoRec="Flange Superior","Não Aplicável",IF(dc<=0.5*d,"Não Aplicável",0.9*L81*wxn/100))) -> Não Aplicável | U81: 0,90·Fcr·Ag = | X81: =IF(Nd<=0,"N.A.",0.9*W80*V75) -> N.A.
A82: Verificação da Chapa a Flexão | S82: Verificação das Tensões Combinadas na Chapa
A83: Escoamento da Seção Bruta | H83: Flambagem Lateral por Torção
A84: Zpl = | B84: =tp*dp^2/4000 -> 135.4493259
A85: fb·Mn = 0,90·Fy·Zpl = | E85: =0.9*Fyp*Zplp/100 -> 3085.46174 | T85: =IF(Config="Configuração Convencional","N.A.",IF(Nd=0,"N.A.",ABS(Nd/Agpa))) -> 339.3832875 | X85: =IF(Config="Configuração Convencional","N.A.",Vd/Agp) -> 1266.959056
A86: Ruptura da Seção Líquida | T86: =IF(Config="Configuração Convencional","N.A.",Mdp*100/Zplp) -> 1322.044232
A87: Znet = | B87: 96.30424287 | H87: l = | I87: =dp*SQRT(Fyp*'Conversão de Unidades'!$E$17)/(10*tp*SQRT(475+280*(dp/a)^2)) -> 0.4074074992 | Q87: Q = | R87: =IF(lambdap<=0.7,1,IF(lambdap<=1.41,1.34-0.486*lambdap,1.3/lambdap^2)) -> 1 | W87: =IF(Config="Configuração Convencional","N.A.",IF(Nd=0,SQRT(T86^2+3*X85^2),SQRT((T85+T86)^2+3*X85^2))) -> 2752.434767
A88: fb·Mn = 0,75·Fu·Znet = | E88: =0.75*Fup*Znet/100 -> 2945.323385 | H88: Fcr = Fy·Q = | J88: =Fyp*Qp -> 2531.050487 | L88: fb·Mn = 0,90·Fcr·wxn = | P88: =0.9*Fcrp*(tp*dp^2/6000)/100 -> 2056.974493 | S88: 0,90·Fy = | U88: =0.9*Fyp -> 2277.945438 | X88: =IF(Config="Configuração Convencional","N.A.",W87/U88) -> 1.208297056 | Y88: =IF(Config="Configuração Convencional","N.A.",IF(X88<=1,"Ok!","Não Ok!")) -> Não Ok!
A100: Dados da Seção | D100: =Perfil -> W 410 x 38,8 | H100: DESIGNAÇÃO | K100: d | L100: bf | M100: tf | N100: tw | O100: Ag
A101: d (mm) = | D101: 399 | K101: mm | L101: mm | M101: mm | N101: mm | O101: cm² | Q101: h = | R101: =d-tfs-tfi -> 381.4
A102: bfs (mm) = | D102: 140 | H102: Perfil Soldado | K102: 500 | L102: 250 | M102: 12.5 | N102: 6.35 | Q102: bfs/2 = | R102: =bfs/2 -> 70
A103: tfs (mm) = | D103: 8.8 | H103: W 150 x 13,0 | K103: 148 | L103: 100 | M103: 4.9 | N103: 4.3 | O103: 16.6026 | Q103: tfs = | R103: =tfs -> 8.8
A104: bfi (mm) = | D104: 140 | H104: W 150 x 13,5 | K104: 150 | L104: 100 | M104: 5.5 | N104: 4.3 | O104: 18.2 | Q104: bfi/2 = | R104: =bfi/2 -> 70
A105: tfi (mm) = | D105: 8.8 | H105: W 150 x 18,0 | K105: 153 | L105: 102 | M105: 7.1 | N105: 5.8 | O105: 23.3944 | Q105: tfi = | R105: =tfi -> 8.8
A106: tw (mm) = | D106: 6.4 | H106: W 150 x 22,5 | K106: 152 | L106: 152 | M106: 6.6 | N106: 5.8 | O106: 28.9744 | Q106: tw/2 = | R106: =tw/2 -> 3.2
A107: Ag (cm²) = | D107: 50.288 | H107: W 150 x 24,0 | K107: 160 | L107: 102 | M107: 10.3 | N107: 6.6 | O107: 31.5 | Q107: A = | R107: =R101*R106+R102*R103+R104*R105 -> 2452.48
H108: W 150 x 29,8 | K108: 157 | L108: 153 | M108: 9.3 | N108: 6.6 | O108: 38.4524 | Q108: xCG = | R108: =(R101*R106^2/2+R103*R102^2/2+R105*R104^2/2)/R107 -> 18.37844468
H109: W 150 x 37,1 | K109: 162 | L109: 154 | M109: 11.6 | N109: 8.1 | O109: 47.8308
H110: W 200 x 15,0 | K110: 200 | L110: 100 | M110: 5.2 | N110: 4.3 | O110: 19.4128
H111: W 200 x 19,3 | K111: 203 | L111: 102 | M111: 6.5 | N111: 5.8 | O111: 25.14
H112: W 200 x 22,5 | K112: 206 | L112: 102 | M112: 8 | N112: 6.2 | O112: 28.96
H113: W 200 x 26,6 | K113: 207 | L113: 133 | M113: 8.4 | N113: 5.8 | O113: 34.2356
H114: W 200 x 31,3 | K114: 210 | L114: 134 | M114: 10.2 | N114: 6.4 | O114: 40.3304
H115: W 200 x 35,9 | K115: 201 | L115: 165 | M115: 10.2 | N115: 6.2 | O115: 45.7
H116: W 200 x 41,7 | K116: 205 | L116: 166 | M116: 11.8 | N116: 7.2 | O116: 53.5
H117: W 200 x 46,1 | K117: 203 | L117: 203 | M117: 11 | N117: 7.2 | O117: 58.552
H118: W 200 x 52,0 | K118: 206 | L118: 204 | M118: 12.6 | N118: 7.9 | O118: 66.9
H119: HP 200 x 53,0 | K119: 204 | L119: 207 | M119: 11.3 | N119: 11.3 | O119: 68.1402
H120: W 200 x 59,0 | K120: 210 | L120: 205 | M120: 14.2 | N120: 9.1 | O120: 76
H121: W 200 x 71,0 | K121: 216 | L121: 206 | M121: 17.4 | N121: 10.2 | O121: 91
H122: W 200 x 86,0 | K122: 222 | L122: 209 | M122: 20.6 | N122: 13 | O122: 110.9
H123: W 250 x 17,9 | K123: 251 | L123: 101 | M123: 5.3 | N123: 4.8 | O123: 23.1052
H124: W 250 x 22,3 | K124: 254 | L124: 102 | M124: 6.9 | N124: 5.8 | O124: 28.8676
H125: W 250 x 25,3 | K125: 257 | L125: 102 | M125: 8.4 | N125: 6.1 | O125: 32.6482
H126: W 250 x 28,4 | K126: 260 | L126: 102 | M126: 10 | N126: 6.4 | O126: 36.62
H127: W 250 x 32,7 | K127: 258 | L127: 146 | M127: 9.1 | N127: 6.1 | O127: 42.0598
H128: W 250 x 38,5 | K128: 262 | L128: 147 | M128: 11.2 | N128: 6.6 | O128: 49.6016
H129: W 250 x 44,8 | K129: 266 | L129: 148 | M129: 13 | N129: 7.6 | O129: 57.58
H130: HP 250 x 62,0 | K130: 246 | L130: 256 | M130: 10.7 | N130: 10.5 | O130: 79.6054
H131: W 250 x 73,0 | K131: 253 | L131: 254 | M131: 14.2 | N131: 8.6 | O131: 92.69
H132: W 250 x 80,0 | K132: 256 | L132: 255 | M132: 15.6 | N132: 9.4 | O132: 101.9296
H133: HP 250 x 85,0 | K133: 254 | L133: 260 | M133: 14.4 | N133: 14.4 | O133: 108.5
H134: HP 250 x 89,0 | K134: 260 | L134: 256 | M134: 17.3 | N134: 10.7 | O134: 113.9322
H135: W 250 x 101,0 | K135: 264 | L135: 257 | M135: 19.6 | N135: 11.9 | O135: 128.7
H136: W 250 x 115,0 | K136: 269 | L136: 259 | M136: 22.1 | N136: 13.5 | O136: 146.1
H137: W 310 x 21,0 | K137: 303 | L137: 101 | M137: 5.7 | N137: 5.1 | O137: 27.2456
H138: W 310 x 23,8 | K138: 305 | L138: 101 | M138: 6.7 | N138: 5.6 | O138: 30.7236
H139: W 310 x 28,3 | K139: 309 | L139: 102 | M139: 8.9 | N139: 6 | O139: 36.488
H140: W 310 x 32,7 | K140: 313 | L140: 102 | M140: 10.8 | N140: 6.6 | O140: 42.1244
H141: W 310 x 38,7 | K141: 310 | L141: 165 | M141: 9.7 | N141: 5.8 | O141: 49.7248
H142: W 310 x 44,5 | K142: 313 | L142: 166 | M142: 11.2 | N142: 6.6 | O142: 57.2236
H143: W 310 x 52,0 | K143: 317 | L143: 167 | M143: 13.2 | N143: 7.6 | O143: 67.0336
H144: HP 310 x 79,0 | K144: 299 | L144: 306 | M144: 11 | N144: 11 | O144: 99.9916
H145: HP 310 x 93,0 | K145: 303 | L145: 308 | M145: 13.1 | N145: 13.1 | O145: 119.1584
H146: W 310 x 97,0 | K146: 308 | L146: 305 | M146: 15.4 | N146: 9.9 | O146: 123.5844
H147: W 310 x 107,0 | K147: 311 | L147: 306 | M147: 17 | N147: 10.9 | O147: 136.4346
H148: HP 310 x 110,0 | K148: 308 | L148: 310 | M148: 15.5 | N148: 15.4 | O148: 140.9596
H149: W 310 x 117,0 | K149: 314 | L149: 307 | M149: 18.7 | N149: 11.9 | O149: 149.935
H150: HP 310 x 125,0 | K150: 312 | L150: 312 | M150: 17.4 | N150: 17.4 | O150: 159.0104
H151: W 360 x 32,9 | K151: 349 | L151: 127 | M151: 8.5 | N151: 5.8 | O151: 42.0844
H152: W 360 x 39,0 | K152: 353 | L152: 128 | M152: 10.7 | N152: 6.5 | O152: 50.1844
H153: W 360 x 44,0 | K153: 352 | L153: 171 | M153: 9.8 | N153: 6.9 | O153: 57.69
H154: W 360 x 51,0 | K154: 355 | L154: 171 | M154: 11.6 | N154: 7.2 | O154: 64.8
H155: W 360 x 57,8 | K155: 358 | L155: 172 | M155: 13.1 | N155: 7.9 | O155: 72.5146
H156: W 360 x 64,0 | K156: 347 | L156: 203 | M156: 13.5 | N156: 7.7 | O156: 81.6516
H157: W 360 x 72,0 | K157: 350 | L157: 204 | M157: 15.1 | N157: 8.6 | O157: 91.3124
H158: W 360 x 79,0 | K158: 354 | L158: 205 | M158: 16.8 | N158: 9.4 | O158: 101.1992
H159: W 360 x 91,0 | K159: 353 | L159: 254 | M159: 16.4 | N159: 9.5 | O159: 115.9
H160: W 360 x 101,0 | K160: 357 | L160: 255 | M160: 18.3 | N160: 10.5 | O160: 129.5
H161: W 360 x 110,0 | K161: 360 | L161: 256 | M161: 19.9 | N161: 11.4 | O161: 140.5924
H162: W 360 x 122,0 | K162: 363 | L162: 257 | M162: 21.7 | N162: 13 | O162: 155.2876
H163: W 410 x 38,8 | K163: 399 | L163: 140 | M163: 8.8 | N163: 6.4 | O163: 50.288
H164: W 410 x 46,1 | K164: 403 | L164: 140 | M164: 11.2 | N164: 7 | O164: 59.2404
H165: W 410 x 53,0 | K165: 403 | L165: 177 | M165: 10.9 | N165: 7.5 | O165: 68.4144
H166: W 410 x 60,0 | K166: 407 | L166: 178 | M166: 12.8 | N166: 7.7 | O166: 76.1742
H167: W 410 x 67,0 | K167: 410 | L167: 179 | M167: 14.4 | N167: 8.8 | O167: 86.336
H168: W 410 x 75,0 | K168: 413 | L168: 180 | M168: 16 | N168: 9.7 | O168: 95.7954
H169: W 410 x 85,0 | K169: 417 | L169: 181 | M169: 18.2 | N169: 10.9 | O169: 108.6
H170: W 460 x 52,0 | K170: 450 | L170: 152 | M170: 10.8 | N170: 7.6 | O170: 66.6288
H171: W 460 x 60,0 | K171: 455 | L171: 153 | M171: 13.3 | N171: 8 | O171: 76.2084
H172: W 460 x 68,0 | K172: 459 | L172: 154 | M172: 15.4 | N172: 9.1 | O172: 87.6366
H173: W 460 x 74,0 | K173: 457 | L173: 190 | M173: 14.5 | N173: 9 | O173: 94.8584
H174: W 460 x 82,0 | K174: 460 | L174: 191 | M174: 16 | N174: 9.9 | O174: 104.7304
H175: W 460 x 89,0 | K175: 463 | L175: 192 | M175: 17.7 | N175: 10.5 | O175: 114.1044
H176: W 460 x 97,0 | K176: 466 | L176: 193 | M176: 19 | N176: 11.4 | O176: 123.4
H177: W 460 x 106,0 | K177: 469 | L177: 194 | M177: 20.6 | N177: 12.6 | O177: 135.1
H178: W 530 x 66,0 | K178: 525 | L178: 165 | M178: 11.4 | N178: 8.9 | O178: 83.5542
H179: W 530 x 72,0 | K179: 524 | L179: 207 | M179: 10.9 | N179: 9 | O179: 91.5624
H180: W 530 x 74,0 | K180: 529 | L180: 166 | M180: 13.6 | N180: 9.7 | O180: 95.065
A181: dv = | B181: =div/25.4 -> 3 | D181: np = | E181: =nlp*npl -> 4 | H181: W 530 x 82,0 | K181: 528 | L181: 209 | M181: 13.3 | N181: 9.5 | O181: 104.4654
A182: dh = | B182: =dih/25.4 -> 3 | D182: xCG = | E182: 0 | H182: W 530 x 85,0 | K182: 535 | L182: 166 | M182: 16.5 | N182: 10.3 | O182: 107.7244
A183: ex = | B183: =IF(Config="Configuração Convencional",IF(npl>=10,npl-4,ep/25.4),ep/25.4) -> 3 | D183: yCG = | E183: 4.5 | H183: W 530 x 92,0 | K183: 533 | L183: 209 | M183: 15.6 | N183: 10.2 | O183: 117.63
A184: db = | B184: 3/4" | D184: r0 = | E184: 1 | H184: W 530 x 101,0 | K184: 537 | L184: 210 | M184: 17.4 | N184: 10.9 | O184: 130
D185: xCI = | E185: -1 | H185: W 530 x 109,0 | K185: 539 | L185: 211 | M185: 18.8 | N185: 11.6 | O185: 139.7
D186: yCI = | E186: 0 | H186: W 610 x 101,0 | K186: 603 | L186: 228 | M186: 14.9 | N186: 10.5 | O186: 130.3316
H187: W 610 x 113,0 | K187: 608 | L187: 228 | M187: 17.3 | N187: 11.2 | O187: 145.3104
D188: dmax = | E188: =MAX(K201:K204) -> 5.497851545 | H188: W 610 x 125,0 | K188: 612 | L188: 229 | M188: 19.6 | N188: 11.9 | O188: 160.1
D189: Rult = | E189: =0.7*120*PI()*(3/4)^2/4 -> 37.11006322 | H189: W 610 x 140,0 | K189: 617 | L189: 230 | M189: 22.2 | N189: 13.1 | O189: 179.3
D190: Dmax = | E190: =0.34 -> 0.34 | H190: W 610 x 155,0 | K190: 611 | L190: 324 | M190: 19 | N190: 12.7 | O190: 198.0926
D191: Pn = | E191: 104.435623 | H191: W 610 x 174,0 | K191: 616 | L191: 325 | M191: 21.6 | N191: 14 | O191: 222.7936
D192: Erro = | E192: 0.0009937735647 | H192: Perfil Laminado | K192: 500 | L192: 250 | M192: 12.5 | N192: 6.35
D193: C = | E193: =Pn/Rult -> 2.814213018 | H193: @
D195: C' = | E195: =SUM(Y201:Y204) -> 11.25631194
A198: Posição | C198: Coordenadas Referentes C.G. | G198: Coordenadas Referentes C.I.R. | K198: di (in) | M198: Di (in) | O198: Ri (kips) | Q198: Ri·yi/di (kips) | S198: Ri·xi/di (kips) | U198: Ri·di (kips·in) | W198: li (in) | Y198: C'i (in)
C200: x0 (in) | E200: y0 (in) | G200: xi (in) | I200: yi (in)
A201: 1 | B201: 1 | C201: 0 | E201: -4.5 | G201: 3.158539474 | I201: -4.5 | K201: 5.497851545 | M201: 0.34 | O201: 36.42369776 | Q201: -29.812853 | S201: 20.92557179 | U201: 200.252083 | W201: 4.5 | Y201: 4.416770701
A202: 1 | B202: 2 | C202: 0 | E202: -1.5 | G202: 3.158539474 | I202: -1.5 | K202: 3.496622886 | M202: 0.2162393385 | O202: 34.69741724 | Q202: -14.88468375 | S202: 31.34257412 | U202: 121.3237832 | W202: 1.5 | Y202: 1.211385267
A203: 1 | B203: 3 | C203: 0 | E203: 1.5 | G203: 3.158539474 | I203: 1.5 | K203: 3.496622886 | M203: 0.2162393385 | O203: 34.69741724 | Q203: 14.88468375 | S203: 31.34257412 | U203: 121.3237832 | W203: 1.5 | Y203: 1.211385267
A204: 1 | B204: 4 | C204: 0 | E204: 4.5 | G204: 3.158539474 | I204: 4.5 | K204: 5.497851545 | M204: 0.34 | O204: 36.42369776 | Q204: 29.812853 | S204: 20.92557179 | U204: 200.252083 | W204: 4.5 | Y204: 4.416770701
Q205: =SUM(Q201:Q204) -> 0 | S205: =SUM(S201:S204) -> 104.5362918 | U205: =SUM(U201:U204) -> 643.1517325 | W205: =MAX(W201:W204) -> 4.5
U206: 104.4325096

Sheet Conversão de Unidades
A1: Conversão de Unidades
A3: 1 | B3: = | C3: =A3*0.101971621 -> 0.101971621 | D3: = | E3: =A3*0.224808943 -> 0.224808943
A4: 1 | B4: = | C4: =A4*9.80665 -> 9.80665 | D4: = | E4: =A4*2.204622622 -> 2.204622622
A5: 1 | B5: = | C5: =A5*4.448221615 -> 4.448221615 | D5: = | E5: =A5*0.45359237 -> 0.45359237
A6: 1 | B6: = | C6: =A6*4448.22161525 -> 4448.221615 | D6: = | E6: =A6*453.59237 -> 453.59237
A8: 1 | B8: = | C8: =A8/25.4 -> 0.03937007874 | D8: = | E8: =C8/12 -> 0.003280839895
A9: 1 | B9: = | C9: =A9/2.54 -> 0.3937007874 | D9: = | E9: =C9/12 -> 0.03280839895
A10: 1 | B10: = | C10: =A10/12 -> 0.08333333333 | D10: = | E10: =A10*25.4 -> 25.4
A11: 1 | B11: = | C11: =A11*12 -> 12 | D11: = | E11: =A11*12*25.4 -> 304.8
A13: 1 | B13: = | C13: =A13*0.671968975 -> 0.671968975
A14: 1 | B14: = | C14: =A14*0.45359237/(12*25.4/1000) -> 1.488163944
A16: 1 | B16: = | C16: =A16*10.19716213 -> 10.19716213 | D16: = | E16: =A16*0.145037738 -> 0.145037738
A17: 1 | B17: = | C17: 0.0980665 | D17: = | E17: =A17*0.014223343 -> 0.014223343
A18: 1 | B18: = | C18: =A18*6.894757293 -> 6.894757293 | D18: = | E18: =A18*70.306957964 -> 70.30695796
A20: Observações:
A21: 1,00 MPa = 1,00 N/mm²
A22: 1,00 lb (libra) = 1,00 p (pound)
A23: 1 kip = 1.000,00 lb
A24: 1,00 ksi = 1,00 kip/in² = 1.000,00 psi = 1.000,00 lb/in²
